[Event "European Women Blitz-ch 2024"]
[Site "Monaco"]
[Date "2025.01.10"]
[Round "5.6"]
[White "Sliwicka, Alicja"]
[Black "Kosteniuk, Alexandra"]
[Result "0-1"]
[Annotator "TA"]
[ECO "B12"]
[WhiteElo "2344"]
[BlackElo "2484"]
[PlyCount "82"]
[EventDate "2025.01.06"]
[EventType "swiss"]
[EventCountry "MNC"]
[SourceTitle "playchess.com"]
[Source "ChessBase"]
[SourceQuality "1"]
[TimeControl "180+2"]

{[%evp 9,82,18,16,41,11,16,19,12,48,-13,-12,-20,37,0,33,39,33,27,32,24,39,22,26,-58,-69,-38,0,-103,0,0,0,-93,-60,-151,-157,-211,-210,-233,-219,-376,-298,-291,-312,-297,-222,-233,-285,-293,-266,-259,-256,-238,-231,-1185,-1142,-29972,-29972,-29982,-29983,-29983,-12847,-12647,-1391,-3705,-2975,-3683,-3444,-2543,-1273,-1947,-1931,-6756,-8256,-29991,-29992]} 1. e4 {[%emt 0:00:01]} c6 {[%emt 0:00:00]} 2. d4 {[%emt 0:00:01]} d5 {[%emt 0:00:01]} 3. e5 {[%emt 0:00:02]} c5 {[%emt 0:00:00]} 4. Nf3 {[%emt 0:00:01]} Bg4 {[%emt 0:00:01]} 5. dxc5 {[%emt 0:00:04]} Nc6 {[%emt 0:00:01]} 6. c3 {[%emt 0:00:14]} e6 {[%emt 0:00:03]} 7. Be3 {[%emt 0:00:15]} Bxf3 {[%emt 0:00:03]} 8. Qxf3 {[%emt 0:00:02]} a6 {[%emt 0:00:00] Prevents Bb5} 9. b4 {[%emt 0:00:16]} ({White should play} 9. Qg3 $14) 9... Nxe5 {[%emt 0:00:04]} 10. Qg3 {[%emt 0:00:02]} Ng6 {[%emt 0:00:07]} ({Better is} 10... Nc6 $11) 11. h4 {[%emt 0:00:07][%cal Bh2h4,Bh4h5][%mdl 32]} Nf6 {[%emt 0:00:06]} 12. h5 {[%emt 0:00:04]} Ne4 {[%emt 0:00:13]} 13. Qh2 {[%emt 0:00:13]} Ne7 {[%emt 0:00:04]} 14. Bd3 {[%emt 0:00:02]} Nf5 {[%emt 0:00:02]} 15. Bxe4 {[%emt 0:00:09]} (15. Bf4 $5) 15... dxe4 {[%emt 0:00:03]} 16. O-O {[%emt 0:00:04]} (16. Qf4 $11) 16... Nxe3 {[%emt 0:00:12]} 17. fxe3 {[%emt 0:00:02]} Qg5 {[%emt 0:00:23]} 18. Qh3 {[%emt 0:00:15] [#]} (18. Qc7 $11 Qxe3+ (18... Qxh5 $2 19. Qxb7 Rd8 20. Qc6+ Ke7 21. Qxa6 $18) 19. Kh1) 18... f5 {[%emt 0:00:10]} (18... Rd8 $1 $17 {[%cal Rd8d3] and ...Rd3 should not be overlooked} 19. Na3 Rd3) 19. Nd2 $11 {[%emt 0:00:04]} Be7 $36 {[%emt 0:00:10][%mdl 2048] Black has good play.} 20. Nb3 {[%emt 0:00:24]} (20. Nxe4 $11 {remains equal.} fxe4 21. Qxe6) 20... O-O {[%emt 0:00:12] Black is more active.} 21. Nd4 {[%emt 0:00:01]} (21. Rad1 $1 $15) 21... Rf6 $17 {[%emt 0:00:01]} 22. Rae1 {[%emt 0:00:18]} (22. Rad1 $17) 22... Raf8 $19 {[%emt 0:00:05]} 23. Qh2 {[%emt 0:00:11]} Rh6 {[%emt 0:00:06][%cal Of8e8]} 24. Qc7 $2 {[%emt 0:00:08]} (24. Re2 {was worth a try.}) 24... Bd8 {[%emt 0:00:15]} 25. Qd7 {[%emt 0:00:06]} ({Reject} 25. Qxb7 Qxh5 26. Rf4 Bg5 $19) 25... Qxh5 {[%emt 0:00:34]} (25... Rxh5 26. Qxe6+ (26. Nxe6 Qh6 $18) 26... Kh8 27. Nxf5 $18 (27. Qxe4 Bc7 $11)) 26. Nxe6 {[%emt 0:00:25][%csl Ge6][%cal Rd7g7]} Qh2+ {[%emt 0:00:14]} 27. Kf2 {[%emt 0:00:02][%csl Ge6][%cal Rd7g7]} Bh4+ {[%emt 0:00:09]} 28. Ke2 {[%emt 0:00:00][%csl Ge6][%cal Rd7g7]} Qxg2+ {[%emt 0:00:01]} 29. Kd1 {[%emt 0:00:01] Threatens to win with Rg1.} Rxe6 {[%emt 0:00:10]} (29... Bxe1 30. Rxf5 Qg4+ 31. Kc1 $11) 30. Qxe6+ {[%emt 0:00:03]} Kh8 {[%emt 0:00:01]} 31. Qd6 $2 {[%emt 0:00:21]} (31. Kc1 Bxe1 32. Rxe1) 31... Rd8 {[%emt 0:00:02]} 32. Rg1 {[%emt 0:00:04]} Qxa2 {[%emt 0:00:12]} 33. Ref1 {[%emt 0:00:03]} Rxd6+ {[%emt 0:00:03]} 34. cxd6 {[%emt 0:00:01]} Qd5+ {[%emt 0:00:02]} (34... Qb1+ $142 35. Kd2 Qd3+ 36. Kc1 Qxc3+ (36... Qxd6 37. Rxf5 Kg8 38. Rgf1 $19) (36... Qxe3+ $2 37. Kb2 $19) 37. Kd1 Qd3+ (37... Qxb4 $2 38. Rxf5 Qxd6+ 39. Kc2 $19) (37... Qxe3 $2 38. d7 $19) 38. Kc1 Qxe3+ (38... Qxd6 $2 39. Rxf5 Qxb4 40. Rd1 $19) 39. Kc2 Qd3+ 40. Kc1 Qc3+ (40... Qxd6 $2 41. Rxf5 e3 42. Rg2 $19) (40... g6 $2 41. d7 $19) 41. Kb1 Bf6 (41... Qxb4+ $2 42. Kc2 $19) 42. Rg2 Qd3+ (42... Qxb4+ $2 43. Kc1 $19) 43. Ka2 Qc4+ (43... Qxf1 {gets mated.} 44. Rc2 Qa1+ 45. Kb3 Qb1+ 46. Kc4 Qxc2+ 47. Kd5 Qc8 48. b5 axb5 49. d7 Qc6#) 44. Ka3 Qxf1 45. d7 Qxg2 46. d8=Q+ Bxd8 47. b5 Qc2 (47... axb5 48. Kb4 Qb2+ 49. Kc5 Bc7 50. Kd5 Qe5#) 48. Kb4 a5+ 49. Ka3 Be7#) 35. Kc2 {[%emt 0:00:01]} Qd3+ {[%emt 0:00:01]} 36. Kb2 {[%emt 0:00:01]} Bf6 {[%emt 0:00:01]} 37. Rc1 {[%emt 0:00:01]} Qxd6 {[%emt 0:00:02]} 38. Rgd1 {[%emt 0:00:01]} Qh2+ {[%emt 0:00:01]} 39. Kb3 {[%emt 0:00:00]} h6 {[%emt 0:00:03]} 40. Rd7 {[%emt 0:00:02]} b5 {[%emt 0:00:02]} 41. Rd6 {[%emt 0:00:03]} Qxd6 {[%emt 0:00:05]} 0-1

[Event "European Women Blitz-ch 2024"]
[Site "Monaco"]
[Date "2025.01.10"]
[Round "5.7"]
[White "Stefanova, Antoaneta"]
[Black "Hejazipour, Mitra"]
[Result "1/2-1/2"]
[Annotator "TA"]
[ECO "D05"]
[WhiteElo "2418"]
[BlackElo "2310"]
[PlyCount "246"]
[EventDate "2025.01.06"]
[EventType "swiss"]
[EventCountry "MNC"]
[SourceTitle "playchess.com"]
[Source "ChessBase"]
[SourceQuality "1"]
[TimeControl "180+2"]

{[%evp 145,246,56,56,56,56,56,56,52,52,56,56,56,56,8,8,0,0,0,0,0,0,0,0,0,0,0,8,0,8,8,8,8,8,0,0,0,0,0,0,0,0,0,0,0,0,0,0,0,0,0,0,0,0,0,0,0,0,0,0,0,0,0,0,0,0,0,0,0,0,0,0,0,0,0,0,0,0,0,0,0,0,0,0,0,0,0,0,0,0,0,0,0,0,0,0,0,0,0,0,0,0,0,0]} 1. d4 {[%emt 0:00:01]} Nf6 {[%emt 0:00:02]} 2. Nf3 {[%emt 0:00:01]} e6 {[%emt 0:00:03]} 3. e3 {[%emt 0:00:01]} d5 {[%emt 0:00:07]} 4. Nbd2 {[%emt 0:00:07]} c5 {[%emt 0:00:04]} 5. b3 {[%emt 0:00:13]} b6 {[%emt 0:00:18]} 6. Bb2 {[%emt 0:00:08]} Be7 {[%emt 0:00:05]} 7. Ne5 {[%emt 0:00:18]} O-O {[%emt 0:00:08]} 8. Bd3 {[%emt 0:00:01]} Nfd7 {[%emt 0:00:42]} 9. f4 {[%emt 0:00:26]} f5 {[%emt 0:00:08]} 10. O-O {[%emt 0:00:07]} Nxe5 {[%emt 0:00:04]} 11. dxe5 {[%emt 0:00:12]} Bb7 {[%emt 0:00:09]} 12. c4 {[%emt 0:00:08]} Na6 {[%emt 0:00:24]} 13. Nf3 {[%emt 0:00:19]} Nb4 {[%emt 0:00:05]} 14. Be2 {[%emt 0:00:01]} dxc4 {[%emt 0:00:13]} 15. Bxc4 {[%emt 0:00:05]} Bd5 {[%emt 0:00:01]} 16. Qe2 {[%emt 0:00:12]} Bxc4 {[%emt 0:00:05]} 17. Qxc4 {[%emt 0:00:02]} Qd5 {[%emt 0:00:02]} 18. Qxd5 {[%emt 0:00:16]} Nxd5 {[%emt 0:00:03]} 19. Kf2 {[%emt 0:00:03]} Rfd8 {[%emt 0:00:04]} 20. Ke2 {[%emt 0:00:08]} b5 {[%emt 0:00:06]} 21. Rfd1 {[%emt 0:00:06]} Nb4 {[%emt 0:00:08]} 22. a3 {[%emt 0:00:07]} Nc6 {[%emt 0:00:15]} 23. Rxd8+ {[%emt 0:00:24]} Rxd8 {[%emt 0:00:01]} 24. Bc3 {[%emt 0:00:06]} h6 {[%emt 0:00:10]} 25. Nd2 {[%emt 0:00:02]} Kf7 {[%emt 0:00:04]} 26. g3 {[%emt 0:00:01]} Rd7 {[%emt 0:00:06]} 27. a4 {[%emt 0:00:02]} b4 {[%emt 0:00:05]} 28. Bb2 {[%emt 0:00:01]} Na5 {[%emt 0:00:02]} 29. Rd1 {[%emt 0:00:10]} g5 {[%emt 0:00:02]} 30. h3 {[%emt 0:00:03]} Ke8 {[%emt 0:00:06]} 31. Bc1 {[%emt 0:00:01]} Kf7 {[%emt 0:00:02]} 32. Rf1 {[%emt 0:00:01]} Kg6 {[%emt 0:00:03]} 33. g4 {[%emt 0:00:02]} fxg4 {[%emt 0:00:04]} 34. hxg4 {[%emt 0:00:01]} gxf4 {[%emt 0:00:03]} 35. exf4 {[%emt 0:00:02]} Rd4 {[%emt 0:00:02]} 36. Bb2 {[%emt 0:00:05]} Rd8 {[%emt 0:00:03]} 37. f5+ {[%emt 0:00:01]} Kg5 {[%emt 0:00:02]} 38. fxe6 {[%emt 0:00:11]} Kxg4 {[%emt 0:00:01]} 39. Rf7 {[%emt 0:00:01]} Bg5 {[%emt 0:00:01]} 40. Ne4 {[%emt 0:00:00]} Nxb3 {[%emt 0:00:02]} 41. Rxa7 {[%emt 0:00:01]} Nd4+ {[%emt 0:00:01]} 42. Bxd4 {[%emt 0:00:03]} cxd4 {[%emt 0:00:01]} 43. Kd3 {[%emt 0:00:01]} Kf5 {[%emt 0:00:02]} 44. e7 {[%emt 0:00:02]} Bxe7 {[%emt 0:00:05]} 45. Rxe7 {[%emt 0:00:01]} Ra8 {[%emt 0:00:00]} 46. Nc5 {[%emt 0:00:02]} b3 {[%emt 0:00:02]} 47. Rb7 {[%emt 0:00:02]} Kxe5 {[%emt 0:00:01]} 48. Rxb3 {[%emt 0:00:00]} Kd5 {[%emt 0:00:01]} 49. Rb5 {[%emt 0:00:01]} Kc6 {[%emt 0:00:01]} 50. Nb3 {[%emt 0:00:05]} Rxa4 {[%emt 0:00:02]} 51. Rh5 {[%emt 0:00:02]} Rb4 {[%emt 0:00:01]} 52. Nxd4+ {[%emt 0:00:01]} Kd6 {[%emt 0:00:02]} 53. Rxh6+ {[%emt 0:00:01]} Kd5 {[%emt 0:00:01]} 54. Rh5+ {[%emt 0:00:01]} Kd6 {[%emt 0:00:00]} 55. Ke4 {[%emt 0:00:01]} Ra4 {[%emt 0:00:01]} 56. Rh6+ {[%emt 0:00:01]} Kd7 {[%emt 0:00:01]} 57. Kd5 {[%emt 0:00:01]} Ra5+ {[%emt 0:00:01]} 58. Kc4 {[%emt 0:00:01]} Ra4+ {[%emt 0:00:01]} 59. Kc5 {[%emt 0:00:01]} Ra5+ {[%emt 0:00:01]} 60. Nb5 {[%emt 0:00:00]} Ra1 {[%emt 0:00:01]} 61. Rh7+ {[%emt 0:00:02]} Ke6 {[%emt 0:00:01]} 62. Nd4+ {[%emt 0:00:01]} Ke5 {[%emt 0:00:01]} 63. Re7+ {[%emt 0:00:01]} Kf6 {[%emt 0:00:01]} 64. Re2 {[%emt 0:00:01]} Ra5+ {[%emt 0:00:02]} 65. Kd6 {[%emt 0:00:01]} Ra6+ {[%emt 0:00:01]} 66. Nc6 {[%emt 0:00:03]} Kf5 {[%emt 0:00:02]} 67. Kd5 {[%emt 0:00:03]} Kf4 {[%emt 0:00:03]} 68. Re4+ {[%emt 0:00:01]} Kf3 {[%emt 0:00:02]} 69. Nd4+ {[%emt 0:00:03]} Kg3 {[%emt 0:00:05]} 70. Re3+ {[%emt 0:00:00]} Kg4 {[%emt 0:00:02]} 71. Rf3 {[%emt 0:00:00]} Ra8 {[%emt 0:00:04]} 72. Rf7 {[%emt 0:00:00]} Rd8+ {[%emt 0:00:03]} 73. Ke5 {[%emt 0:00:00]} Re8+ {[%emt 0:00:02]} 74. Ne6 {[%emt 0:00:00]} Kg3 {[%emt 0:00:02]} 75. Rb7 {[%emt 0:00:00]} Kf3 {[%emt 0:00:06]} 76. Rb3+ {[%emt 0:00:00]} Kg4 {[%emt 0:00:01]} 77. Rb4+ {[%emt 0:00:00]} Kf3 {[%emt 0:00:02]} 78. Kf5 {[%emt 0:00:00]} Ra8 {[%emt 0:00:03]} 79. Rb3+ {[%emt 0:00:00]} Kf2 {[%emt 0:00:01]} 80. Kf4 {[%emt 0:00:00]} Ra4+ {[%emt 0:00:02]} 81. Ke5 {[%emt 0:00:00]} Ra5+ {[%emt 0:00:02]} 82. Ke4 {[%emt 0:00:00]} Ra8 {[%emt 0:00:03]} 83. Rf3+ {[%emt 0:00:00]} Ke2 {[%emt 0:00:03]} 84. Nd4+ {[%emt 0:00:00]} Kd2 {[%emt 0:00:01]} 85. Rd3+ {[%emt 0:00:00]} Kc1 {[%emt 0:00:03]} 86. Rc3+ {[%emt 0:00:14]} Kb2 {[%emt 0:00:05]} 87. Rb3+ {[%emt 0:00:04]} Ka2 {[%emt 0:00:06]} 88. Rb7 {[%emt 0:00:08]} Rh8 {[%emt 0:00:01]} 89. Kd3 {[%emt 0:00:03]} Rh3+ {[%emt 0:00:03]} 90. Kc4 {[%emt 0:00:03]} Rh4 {[%emt 0:00:02]} 91. Kd3 {[%emt 0:00:08]} Rh3+ {[%emt 0:00:01]} 92. Kd2 {[%emt 0:00:01]} Rh2+ {[%emt 0:00:02]} 93. Ne2 {[%emt 0:00:03]} Ka3 {[%emt 0:00:02]} 94. Kd3 {[%emt 0:00:01]} Ka4 {[%emt 0:00:03]} 95. Kc4 {[%emt 0:00:04]} Ka5 {[%emt 0:00:03]} 96. Nd4 {[%emt 0:00:04]} Ka6 {[%emt 0:00:01]} 97. Rb3 {[%emt 0:00:05]} Rh4 {[%emt 0:00:02]} 98. Rb4 {[%emt 0:00:04]} Rh8 {[%emt 0:00:02]} 99. Rb3 {[%emt 0:00:00]} Rh4 {[%emt 0:00:01]} 100. Kc5 {[%emt 0:00:00]} Rh5+ {[%emt 0:00:01]} 101. Kd6 {[%emt 0:00:00]} Rh6+ {[%emt 0:00:02]} 102. Ne6 {[%emt 0:00:00]} Ka5 {[%emt 0:00:01]} 103. Rb8 {[%emt 0:00:00]} Ka4 {[%emt 0:00:02]} 104. Kd5 {[%emt 0:00:00]} Ka5 {[%emt 0:00:02]} 105. Kc5 {[%emt 0:00:00]} Rh5+ {[%emt 0:00:02]} 106. Kc4 {[%emt 0:00:00]} Rh4+ {[%emt 0:00:02]} 107. Nd4 {[%emt 0:00:00]} Ka6 {[%emt 0:00:01]} 108. Rb2 {[%emt 0:00:00]} Ka7 {[%emt 0:00:03]} 109. Rb4 {[%emt 0:00:06]} Ka6 {[%emt 0:00:01]} 110. Kb3 {[%emt 0:00:03]} Rh3+ {[%emt 0:00:03]} 111. Ka4 {[%emt 0:00:04]} Rh4 {[%emt 0:00:02]} 112. Kb3 {[%emt 0:00:08]} Rh3+ {[%emt 0:00:01]} 113. Kc4 {[%emt 0:00:01]} Rh4 {[%emt 0:00:02]} 114. Rb2 {[%emt 0:00:02]} Ka5 {[%emt 0:00:03]} 115. Kc5 {[%emt 0:00:04]} Rh5+ {[%emt 0:00:01]} 116. Kc4 {[%emt 0:00:02]} Rh4 {[%emt 0:00:01]} 117. Rb8 {[%emt 0:00:03]} Ka6 {[%emt 0:00:01]} 118. Kc5 {[%emt 0:00:03]} Rh5+ {[%emt 0:00:01]} 119. Kd6 {[%emt 0:00:00]} Rh6+ {[%emt 0:00:03]} 120. Ne6 {[%emt 0:00:02]} Ka5 {[%emt 0:00:01]} 121. Kc5 {[%emt 0:00:03]} Rxe6 {[%emt 0:00:04]} 122. Ra8+ {[%emt 0:00:05]} Ra6 {[%emt 0:00:01]} 123. Rxa6+ {[%emt 0:00:01]} Kxa6 {[%emt 0:00:14]} 1/2-1/2

[Event "European Women Blitz-ch 2024"]
[Site "Monaco"]
[Date "2025.01.10"]
[Round "5.8"]
[White "Batsiashvili, Nino"]
[Black "Narva, Mai"]
[Result "0-1"]
[Annotator "TA"]
[ECO "A43"]
[WhiteElo "2476"]
[BlackElo "2398"]
[PlyCount "67"]
[EventDate "2025.01.06"]
[EventType "swiss"]
[EventCountry "MNC"]
[SourceTitle "playchess.com"]
[Source "ChessBase"]
[SourceQuality "1"]
[TimeControl "180+2"]

{[%evp 10,67,70,72,92,33,33,34,35,-35,-34,-81,-16,0,65,62,58,66,66,78,76,62,79,32,32,-42,0,-29,0,0,-16,-28,0,0,0,0,0,-18,-25,-27,-13,-131,-123,-56,249,-17,-21,-723,-701,-29982,-29983,-29996,-29984,-29984,-29985,-29987,0,-6287,-6287,-5402]} 1. d4 {[%emt 0:00:01]} g6 {[%emt 0:00:01]} 2. c4 {[%emt 0:00:02]} Bg7 {[%emt 0:00:02]} 3. Nc3 {[%emt 0:00:01]} c5 {[%emt 0:00:07]} 4. d5 {[%emt 0:00:01]} Bxc3+ {[%emt 0:00:04]} 5. bxc3 {[%emt 0:00:01]} d6 {[%emt 0:00:02]} 6. e4 {[%emt 0:00:04]} e5 {[%emt 0:00:02]} 7. dxe6 {[%emt 0:00:21]} (7. Bd3 $16) 7... Bxe6 $14 {[%emt 0:00:02]} 8. Bd3 {[%emt 0:00:06]} Nc6 {[%emt 0:00:08]} 9. f4 {[%emt 0:00:04]} ({White should play} 9. Ne2 $14) 9... Qa5 {[%emt 0:00:22]} 10. Bd2 {[%emt 0:00:10] [#]} (10. Qb3 $15) 10... Nf6 {[%emt 0:00:48] Black is more active.} (10... Qa6 $1 $17 11. Qb3 Nf6) 11. Nf3 $11 {[%emt 0:00:07]} h6 {[%emt 0:00:08]} (11... Qa6 $11) 12. f5 $14 {[%emt 0:00:14]} gxf5 {[%emt 0:00:18]} 13. exf5 {[%emt 0:00:01]} Bd7 {[%emt 0:00:02]} 14. Qe2+ {[%emt 0:00:08]} Kd8 {[%emt 0:00:04]} 15. O-O {[%emt 0:00:03]} Kc7 {[%emt 0:00:03]} 16. Qf2 {[%emt 0:00:11]} (16. Qe1 $16) 16... Ng4 {[%emt 0:00:09]} 17. Qg3 {[%emt 0:00:40]} (17. Qh4 $1 $14 Nge5 18. Be4) 17... Nge5 {[%emt 0:00:04]} 18. Nxe5 {[%emt 0:00:09]} Nxe5 {[%emt 0:00:02]} 19. Be4 $1 {[%emt 0:00:22]} Rhg8 $36 {[%emt 0:00:06][%mdl 2048] Black has good play.} 20. Qh3 {[%emt 0:00:15]} Nxc4 {[%emt 0:00:17]} 21. Bf4 {[%emt 0:00:00][%cal Oa1b1]} Rae8 {[%emt 0:00:03]} 22. Bd5 {[%emt 0:00:12] A strong pair of Bishops.} Ne5 {[%emt 0:00:04]} 23. Bxe5 {[%emt 0:00:17]} Rxe5 {[%emt 0:00:02]} 24. Bxf7 {[%emt 0:00:01]} Rg5 {[%emt 0:00:08][%cal Rd7f5]} 25. Be6 {[%emt 0:00:04]} (25. Qxh6 $11 {remains equal.} Rgxf5 26. Qd2) 25... Bc6 $17 {[%emt 0:00:13][%cal Oe5e3] Threatens to win with ...Re3!.} 26. Rf2 {[%emt 0:00:01][%cal Of5f6] and f6! should not be overlooked} Qa4 $2 {[%emt 0:00:25][%mdl 8192]} (26... c4 $1 $15 {stays ahead.} 27. f6 (27. Bxc4 $2 Qc5 $19) 27... Qc5) 27. Raf1 $2 {[%emt 0:00:04]} (27. Qxh6 Qg4) (27. f6 $18 Bxg2 (27... Rh5 $2 28. Qg4 $18) 28. Rxg2 Rxg2+ 29. Qxg2) 27... Qe4 $11 {[%emt 0:00:03]} 28. f6 $2 {[%emt 0:00:11][%mdl 8192]} Rxe6 $19 {[%emt 0:00:02]} 29. f7 {[%emt 0:00:00]} Reg6 {[%emt 0:00:02]} 30. Qf3 {[%emt 0:00:07]} Rxg2+ {[%emt 0:00:04]} 31. Rxg2 {[%emt 0:00:01]} Rxg2+ {[%emt 0:00:01]} 32. Kxg2 {[%emt 0:00:01]} Qg6+ $2 {[%emt 0:00:01]} (32... Qxf3+ $2 33. Rxf3 Bxf3+ 34. Kxf3 $18) (32... Qg4+ {mates} 33. Kh1 Bxf3+ 34. Rxf3 Qxf3+ 35. Kg1 Qxf7 (35... Qxc3 $2 36. f8=Q $19) 36. a4 Qg7+ 37. Kf2 Qxc3 38. a5 c4 (38... Qxa5 {is a self mate.} 39. h3 c4 40. Ke2 Qd5 41. h4 c3 42. Kf2 c2 43. Kg3 c1=Q 44. Kg4 Qc3 45. h5 Qg5#) 39. h4 Qd2+ (39... Qxa5 40. Kg3 c3 41. Kh3 c2 42. Kg3 Qe5+ 43. Kh3 c1=Q 44. Kg2 Qe2+ 45. Kh3 Qce3#) 40. Kf3 c3 (40... Qxa5 41. Ke4 Qe5+ 42. Kf3 c3 43. Kg4 c2 44. Kf3 c1=Q 45. Kf2 Qh2+ 46. Kf3 Qcf4#) 41. Kg3 c2 42. Kg4 Qg2+ (42... c1=R 43. Kf5 Qf2+ 44. Kg6 Rg1+ 45. Kh5 Qf7+ 46. Kxh6 Qg6#) (42... c1=Q 43. Kf5 Qg2 44. Ke6 Qf4 45. h5 Qge4#) 43. Kh5 c1=Q (43... c1=R $2 44. a6 Rg1 45. Kxh6 Qg6#) 44. a6 Qgg5+ 45. hxg5 Qxg5#) 33. Kf2 $2 {[%emt 0:00:05][%mdl 8192]} (33. Kh1 $11 Bxf3+ (33... Qxf7 $2 34. Qxc6+ Kxc6 35. Rxf7 $18) 34. Rxf3 Qb1+ 35. Kg2 Qg6+ (35... Qxa2+ $2 {too greedy.} 36. Kg3 $18) 36. Kf1 Qb1+ 37. Kg2) 33... Bxf3 {[%emt 0:00:02]} 34. f8=Q {[%emt 0:00:05]} 0-1

[Event "European Women Blitz-ch 2024"]
[Site "Monaco"]
[Date "2025.01.10"]
[Round "5.9"]
[White "Maltsevskaya, Aleksandra"]
[Black "Garcia Martin, Marta"]
[Result "1-0"]
[Annotator "TA"]
[ECO "B07"]
[WhiteElo "2368"]
[BlackElo "2323"]
[PlyCount "89"]
[EventDate "2025.01.06"]
[EventType "swiss"]
[EventCountry "MNC"]
[SourceTitle "playchess.com"]
[Source "ChessBase"]
[SourceQuality "1"]
[TimeControl "180+2"]

{[%evp 10,89,42,39,56,20,39,18,22,20,18,23,27,22,26,-4,10,0,11,0,0,0,22,0,21,4,5,0,0,-18,-22,-16,-20,-24,0,0,0,-38,-52,-46,-18,-47,-16,-14,-16,-50,0,-4,-4,-22,-6,-43,-11,-17,-14,-13,-2,-6,0,0,0,0,0,0,0,0,37,44,44,44,92,51,227,222,316,216,454,445,420,405,29995,29995]} 1. e4 {[%emt 0:00:01]} g6 {[%emt 0:00:02]} 2. d4 {[%emt 0:00:01]} Bg7 {[%emt 0:00:01]} 3. Nf3 {[%emt 0:00:02]} d6 {[%emt 0:00:01]} 4. Bd3 {[%emt 0:00:02]} Nf6 {[%emt 0:00:07]} 5. c3 {[%emt 0:00:01]} O-O {[%emt 0:00:03]} 6. O-O {[%emt 0:00:02]} e5 {[%emt 0:00:38]} 7. Bg5 {[%emt 0:00:05]} h6 {[%emt 0:00:08]} 8. Bh4 {[%emt 0:00:01]} Re8 {[%emt 0:00:20]} 9. Re1 {[%emt 0:00:03]} Nc6 {[%emt 0:00:19]} 10. dxe5 {[%emt 0:01:26]} Nxe5 {[%emt 0:00:28]} 11. Nxe5 {[%emt 0:00:06]} dxe5 {[%emt 0:00:01]} 12. h3 {[%emt 0:00:26]} Be6 {[%emt 0:00:07]} (12... g5 $5 13. Bg3 $8 Nh5 $11) 13. Na3 {[%emt 0:00:03][%cal Bb1a3,Ba3c2,Bc2e3,Be3g4][%mdl 32]} c6 {[%emt 0:00:18]} 14. Bc4 {[%emt 0:00:21]} Qc7 {[%emt 0:00:18]} 15. Qf3 {[%emt 0:00:15]} Nh5 {[%emt 0:00:18]} 16. Rad1 {[%emt 0:00:06]} b5 {[%emt 0:00:15]} 17. Bxe6 {[%emt 0:00:02]} Rxe6 {[%emt 0:00:00]} 18. Nc2 {[%emt 0:00:02]} Bf6 {[%emt 0:00:06]} 19. Bg3 {[%emt 0:00:10]} Nxg3 {[%emt 0:00:02]} 20. Qxg3 {[%emt 0:00:01]} Rd8 {[%emt 0:00:04]} 21. Ne3 {[%emt 0:00:11]} Red6 {[%emt 0:00:02]} 22. Rxd6 {[%emt 0:00:07]} Qxd6 {[%emt 0:00:03]} 23. Ng4 {[%emt 0:00:08]} Bg7 {[%emt 0:00:01]} 24. Ne3 {[%emt 0:00:03]} h5 {[%emt 0:00:03]} 25. Qf3 {[%emt 0:00:02][%cal Oa2a4]} Qc5 {[%emt 0:00:02]} 26. Rd1 {[%emt 0:00:02]} Rxd1+ {[%emt 0:00:03]} 27. Qxd1 $11 {[%emt 0:00:01][%mdl 4096] Endgame KQB-KQN} Qe7 {[%emt 0:00:02]} (27... Bh6 $1 $15 28. Qd3 Bxe3 29. Qxe3 Qe7 (29... Qxe3 30. fxe3 Kg7 31. Kf2 $17)) 28. Qd3 {[%emt 0:00:01]} Bh6 {[%emt 0:00:01]} 29. Nf1 {[%emt 0:00:02]} Kg7 {[%emt 0:00:00]} 30. Ng3 {[%emt 0:00:03]} Bf4 {[%emt 0:00:02]} 31. Ne2 {[%emt 0:00:01]} Bg5 {[%emt 0:00:01]} 32. g3 {[%emt 0:00:01]} h4 {[%emt 0:00:00]} 33. Kg2 {[%emt 0:00:03]} a5 {[%emt 0:00:02]} 34. c4 {[%emt 0:00:03]} Qb4 {[%emt 0:00:02]} 35. cxb5 {[%emt 0:00:02]} cxb5 {[%emt 0:00:01]} (35... Qxb2 $2 {is the wrong capture.} 36. bxc6 Qb6 37. Qd5 $18) 36. b3 {[%emt 0:00:02]} a4 {[%emt 0:00:01]} 37. Qd5 {[%emt 0:00:01]} Bf6 {[%emt 0:00:02]} 38. gxh4 {[%emt 0:00:04][%cal Bg3h4,Bh4h5,Bh5h6][%mdl 32]} axb3 {[%emt 0:00:01]} 39. axb3 {[%emt 0:00:01][%cal Oh4h5]} Qe1 {[%emt 0:00:09]} (39... Bxh4 $14 40. Qxe5+ Kg8) 40. Ng3 $16 {[%emt 0:00:01]} b4 $2 {[%emt 0:00:03]} (40... Bxh4 $14 41. Qxe5+ Kg8) 41. h5 $18 {[%emt 0:00:01]} Qb1 {[%emt 0:00:02]} (41... Qc3 42. h6+ Kg8) 42. Qd6 {[%emt 0:00:04] And now h6+ would win.} Qxb3 $2 {[%emt 0:00:02] [#]} (42... Qc1 {was worth a try.} 43. Qxb4 Bh4 44. hxg6 fxg6) 43. h6+ $1 {[%emt 0:00:01][%mdl 512]} Kxh6 {[%emt 0:00:02] aiming for ...Kg7.} 44. Qxf6 {[%emt 0:00:01] Intending Nf5+ and mate.} Qe6 {[%emt 0:00:03]} (44... Kh7 $18 45. Qxe5 Qa4) 45. Nf5+ {[%emt 0:00:04]} 1-0